[Event "50th La Roda Open 2024"]
[Site "La Roda"]
[Date "2024.03.29"]
[Round "4.2"]
[White "Martinez Reyes, Pedro Ramon"]
[Black "Xu, Xiangyu"]
[Result "0-1"]
[ECO "B15"]
[WhiteElo "2332"]
[BlackElo "2623"]
[Annotator "TA"]
[PlyCount "134"]
[EventDate "2024.03.27"]
[EventType "swiss"]
[EventCountry "ESP"]
[SourceTitle "playchess.com"]
[Source "ChessBase"]
[SourceQuality "1"]
[TimeControl "5400+30"]

{[%evp 43,134,20,20,1,0,4,31,0,0,-6,-8,-16,-8,-47,-47,-87,-104,-101,-82,-107,-68,-85,-82,-127,-116,-117,-108,-112,-116,-116,-107,-151,-144,-176,-111,-121,-124,-171,-176,-184,-161,-161,-166,-292,-204,-301,-267,-252,-252,-337,-333,-335,-345,-351,-351,-314,-281,-304,-304,-226,-290,-303,-307,-312,-256,-320,-237,-285,-212,-313,-320,-320,-340,-1139,-1032,-1321,-1220,-1362,-1291,-1047,-814,-12837,-12572,-3402,-1084,-29971,-29973,-29972,-29971,-29969,-29971,-29965,-29955]} 1. e4 {[%emt 0:00:42]} c6 {[%emt 0:00:10]} 2. d4 {[%emt 0:01:34]} d5 {[%emt 0:00:12]} 3. Nd2 {[%emt 0:00:10]} dxe4 {[%emt 0:01:15]} 4. Nxe4 {[%emt 0:00:08]} Nf6 {[%emt 0:00:34]} 5. Nxf6+ {[%emt 0:01:49]} exf6 {[%emt 0:00:08]} 6. Nf3 {[%emt 0:00:49]} Bd6 {[%emt 0:00:29]} 7. Bd3 {[%emt 0:00:25]} O-O {[%emt 0:00:17]} 8. O-O {[%emt 0:00:13]} Re8 {[%emt 0:00:36]} 9. h3 {[%emt 0:05:48] B15: Caro-Kann: 3 Nc3: 3...g6 and 3...dxe4 4 Nxe4 Nf6 5 Nxf6+ exf6.} Na6 $5 {[%emt 0:01:06][%mdl 4] An interesting side line.} 10. c4 {[%emt 0:06:24]} Nb4 $146 {[%emt 0:01:19]} ({Predecessor:} 10... Nc7 11. Be3 g6 12. Qc2 b6 13. Rfe1 Bb7 14. a3 Bf8 15. Rad1 Qd7 16. Bf1 Ne6 17. Qc3 Bg7 18. a4 f5 19. Qc1 f4 20. Bxf4 Nxd4 21. Ne5 Bxe5 22. Bxe5 c5 23. Qf4 Re6 {½-½ Eschert,U (2120)-Connelly,K (2217) W-ch WS/M/407 email 2012}) 11. Bb1 {[%emt 0:02:33]} a5 {[%emt 0:00:46]} 12. a3 {[%emt 0:05:04]} Na6 {[%emt 0:00:11]} 13. Re1 {[%emt 0:06:20]} Nc7 {[%emt 0:01:04]} 14. Rxe8+ {[%emt 0:01:51]} Qxe8 {[%emt 0:00:11]} 15. Bd3 {[%emt 0:12:59]} Be6 {[%emt 0:00:34]} 16. Qc2 {[%emt 0:03:29]} h5 {[%emt 0:05:01]} 17. Bd2 {[%emt 0:05:21]} Qd7 {[%emt 0:00:17]} 18. Re1 {[%emt 0:00:26]} Bf8 {[%emt 0:02:17]} 19. a4 {[%emt 0:03:20]} b6 {[%emt 0:15:26]} 20. Bc3 {[%emt 0:02:46]} Bd6 {[%emt 0:03:18]} 21. Bf1 {[%emt 0:06:47]} Na6 {[%emt 0:05:29]} 22. Qe4 {[%emt 0:06:42]} Bf5 {[%emt 0:05:52]} 23. Qh4 {[%emt 0:00:34]} Bg6 {[%emt 0:00:38]} 24. c5 {[%emt 0:04:33]} Bc7 {[%emt 0:03:34]} 25. cxb6 {[%emt 0:05:27]} Bxb6 {[%emt 0:00:05]} 26. Bxa6 {[%emt 0:00:29]} Rxa6 {[%emt 0:00:07]} 27. Qf4 $1 {[%emt 0:00:06]} Ra8 {[%emt 0:00:48]} 28. Qe3 {[%emt 0:07:11]} Bc2 {[%emt 0:01:22]} 29. Qe7 {[%emt 0:02:58]} Qxe7 {[%emt 0:01:05]} 30. Rxe7 {[%emt 0:00:05]} Bxa4 {[%emt 0:00:06]} 31. Nd2 {[%emt 0:02:08]} Bb5 {[%emt 0:02:59]} 32. Rb7 {[%emt 0:03:31]} Bd8 $1 {[%emt 0:00:10]} 33. Ne4 {[%emt 0:03:23]} Bc4 {[%emt 0:00:42]} 34. Nd6 {[%emt 0:00:33]} Bd5 {[%emt 0:00:51]} 35. Nf5 {[%emt 0:00:08]} Kf8 {[%emt 0:01:18]} 36. Ne3 {[%emt 0:01:08]} Be6 {[%emt 0:06:46]} 37. d5 {[%emt 0:00:02]} cxd5 {[%emt 0:00:36]} 38. Rb5 {[%emt 0:00:01] [#]} h4 {[%emt 0:00:35]} (38... Ke7 $1 $19 39. Nxd5+ Kd6) 39. Nxd5 $17 {[%emt 0:00:25]} Bd7 {[%emt 0:00:09]} 40. Rc5 {[%emt 0:00:30] [#]} (40. Rb3 $17) 40... Rc8 $1 $19 {[%emt 0:00:37]} 41. Bd4 {[%emt 0:01:36]} Ke8 {[%emt 0:00:18]} 42. Rxc8 {[%emt 0:00:30]} Bxc8 {[%emt 0:00:04]} 43. Bb6 {[%emt 0:00:30]} (43. Nb6 $142 Bf5 44. Nd5) 43... Bb7 {[%emt 0:00:33]} 44. Bxd8 {[%emt 0:00:27]} Kxd8 {[%emt 0:00:03]} ({Stronger than} 44... Bxd5 45. Bxa5 f5 46. Bc3 $14) 45. Ne3 {[%emt 0:00:12]} Kc7 {[%emt 0:01:26]} 46. Kf1 {[%emt 0:00:51]} Kc6 {[%emt 0:01:32]} 47. Ke1 {[%emt 0:00:26]} Kc5 {[%emt 0:00:32]} 48. Kd2 {[%emt 0:00:07]} Kd4 {[%emt 0:00:56]} 49. g3 {[%emt 0:00:53]} ({Much worse is} 49. Nf5+ Ke5 50. Ne3 (50. Nxh4 $2 {loses.} g5 $19) 50... f5 51. Nc4+ Kf4 $19) 49... Bc8 {[%emt 0:00:33]} 50. gxh4 {[%emt 0:00:35]} Bxh3 {[%emt 0:00:05]} 51. Ke2 {[%emt 0:00:27]} Be6 {[%emt 0:00:13]} 52. f3 {[%emt 0:00:19]} a4 {[%emt 0:02:40]} 53. Ng2 {[%emt 0:00:20]} Bd7 {[%emt 0:00:58]} 54. Ne3 {[%emt 0:01:25]} Bb5+ {[%emt 0:00:10]} 55. Kd2 {[%emt 0:00:00]} Ke5 {[%emt 0:01:06]} 56. Ke1 {[%emt 0:00:00]} (56. Ng2 {is a better defense.}) 56... Bc6 $19 {[%emt 0:00:45]} 57. Kf2 {[%emt 0:00:07]} g6 {[%emt 0:00:19]} 58. Ng4+ $2 {[%emt 0:00:09]} (58. Nc2 Kd5 59. Ke3) 58... Kf4 $19 {[%emt 0:02:25]} 59. Nxf6 {[%emt 0:01:17]} Bxf3 {[%emt 0:00:02]} 60. Nd7 {[%emt 0:00:26]} Bc6 {[%emt 0:00:49]} 61. Nf6 {[%emt 0:00:41]} Kf5 {[%emt 0:01:01]} 62. Ng8 {[%emt 0:00:05]} Bd7 {[%emt 0:00:19]} 63. Kg3 {[%emt 0:00:10]} Ke6 {[%emt 0:01:55]} (63... Ke5 $142 64. Kf3 Kd4) 64. Kf4 {[%emt 0:00:13]} f6 {[%emt 0:00:27]} 65. Nh6 {[%emt 0:01:39]} Ke7 {[%emt 0:00:06]} 66. Ke4 {[%emt 0:00:41]} Be6 {[%emt 0:00:30]} 67. Kf4 {[%emt 0:00:20]} Kd6 {[%emt 0:00:34]} 0-1

[Event "50th La Roda Open 2024"]
[Site "La Roda"]
[Date "2024.03.29"]
[Round "4.3"]
[White "Karthik Venkataraman"]
[Black "Buendia Pinar, Alvaro"]
[Result "1-0"]
[ECO "B17"]
[WhiteElo "2609"]
[BlackElo "2331"]
[Annotator "TA"]
[PlyCount "85"]
[EventDate "2024.03.27"]
[EventType "swiss"]
[EventCountry "ESP"]
[SourceTitle "playchess.com"]
[Source "ChessBase"]
[SourceQuality "1"]
[TimeControl "5400+30"]

{[%evp 27,85,37,57,51,45,50,49,47,38,35,57,40,50,39,82,101,95,54,64,56,55,70,132,22,24,37,29,22,32,8,29,30,28,27,25,27,156,132,291,235,217,201,1200,685,29980,29977,29992,29985,29992,29993,29993,62,29992,29992,29992,29993,29993,29994,29994,228]} 1. e4 {[%emt 0:00:47]} c6 {[%emt 0:03:47]} 2. d4 {[%emt 0:00:10]} d5 {[%emt 0:01:07]} 3. Nd2 {[%emt 0:00:08][%cal Bb1d2,Bd2e4,Be4g5][%mdl 32]} dxe4 {[%emt 0:00:24]} 4. Nxe4 {[%emt 0:00:09]} Nd7 {[%emt 0:00:05]} 5. Bd3 {[%emt 0:00:54]} Ngf6 {[%emt 0:00:16]} 6. Ng5 {[%emt 0:00:14]} e6 {[%emt 0:00:32]} 7. N1f3 {[%emt 0:00:23]} Bd6 {[%emt 0:00:36]} 8. Qe2 {[%emt 0:00:17]} h6 {[%emt 0:00:38]} 9. Ne4 {[%emt 0:00:09]} Nxe4 {[%emt 0:00:06]} 10. Qxe4 {[%emt 0:00:06]} Nf6 {[%emt 0:00:20]} 11. Qe2 {[%emt 0:00:07]} Qc7 {[%emt 0:04:52]} 12. Bd2 {[%emt 0:00:08]} b6 {[%emt 0:00:57]} 13. O-O-O {[%emt 0:00:10]} Bb7 {[%emt 0:00:05]} 14. Kb1 {[%emt 0:00:06]} O-O-O {[%emt 0:01:46]} 15. a3 {[%emt 0:00:08]} Kb8 {[%emt 0:00:49]} 16. Rhe1 {[%emt 0:00:07]} c5 {[%emt 1:22:10]} 17. dxc5 {[%emt 0:00:21] White is slightly better.} Bxc5 {[%emt 0:00:00]} 18. g3 {[%emt 0:00:13]} Ka8 {[%emt 0:00:00]} 19. Bf4 {[%emt 0:02:15]} Qe7 {[%emt 0:00:00]} 20. Ne5 {[%emt 0:17:16]} g5 {[%emt 0:00:00]} 21. Bd2 {[%emt 0:03:31]} Bd4 {[%emt 0:00:00]} 22. Bb4 {[%emt 0:03:37]} Qc7 {[%emt 0:00:00]} 23. Nf3 {[%emt 0:00:09] [#] Nxd4 would now be deadly.} Bc5 {[%emt 0:00:00]} 24. Bc3 {[%emt 0:02:46]} Qe7 {[%emt 0:00:00]} ({Black should play} 24... Be7 $14) 25. Bxf6 {[%emt 0:11:19]} (25. b4 $16 Bd6 26. Bb2) 25... Qxf6 $11 {[%emt 0:00:00]} 26. Be4 {[%emt 0:00:02] And now Bxb7+ would win.} Rxd1+ {[%emt 0:00:00]} 27. Rxd1 {[%emt 0:00:36]} Rd8 {[%emt 0:00:00] [#] Inhibits Rd7. Hoping for ...Rxd1+.} 28. Rxd8+ {[%emt 0:14:23]} Qxd8 {[%emt 0:00:00]} 29. Ne5 $40 {[%emt 0:00:04][%mdl 128] White mounts an attack.} f5 {[%emt 0:00:00]} 30. Bxb7+ {[%emt 0:13:41]} Kxb7 {[%emt 0:00:00][%mdl 4096] Endgame. KQB-KQN} 31. Qh5 {[%emt 0:01:22]} Bxf2 {[%emt 0:00:00]} (31... Qd5 $11 32. Qf7+ Ka8 (32... Ka6 33. Nd3 $16)) 32. Qf7+ $16 {[%emt 0:00:06]} (32. Qxh6 $2 {is the wrong capture.} Qd1+ 33. Ka2 Qd5+ (33... Qxc2 34. Qxe6 Bc5 35. Qd5+ Ka6 36. Nd3 $16) 34. Kb1 Qxe5 $19) 32... Ka6 $2 {[%emt 0:00:00]} (32... Qc7 $16 33. Qxe6 f4 34. Qd5+ Kb8 35. gxf4 gxf4 36. Qg8+ Qc8) 33. Nd3 {[%emt 0:00:12]} Bc5 {[%emt 0:00:00]} 34. Qxe6 {[%emt 0:04:58]} Qf8 {[%emt 0:00:00]} (34... Kb7 35. Qxh6 (35. Qxf5 Qd6 $18) 35... Kb8) 35. Qd7 {[%emt 0:00:01] Intending b4 and mate.} Bd6 {[%emt 0:00:00]} 36. b4 {[%emt 0:02:23][%cal Bb2b4,Bb4b5][%mdl 32]} f4 {[%emt 0:00:00]} 37. gxf4 {[%emt 0:06:05]} gxf4 {[%emt 0:00:00]} 38. c4 {[%emt 0:00:57]} Qb8 {[%emt 0:00:00]} 39. b5+ {[%emt 0:00:25]} Ka5 {[%emt 0:00:00]} 40. Qg7 {[%emt 0:00:04] White mates.} Bxa3 {[%emt 0:00:00]} 41. Qc3+ {[%emt 0:00:11]} Ka4 {[%emt 0:00:00]} 42. Ka2 {[%emt 0:00:15][%csl Ga2][%cal Rc3a3]} Qd6 {[%emt 0:00:00]} 43. Qb3+ $2 {[%emt 0:00:06] Weighted Error Value: White=0.42/Black=0.44.  Mistake:       	White=1     	Black=4      Inaccurate:     	White=2     	Black=2      OK:         	White=8     	Black=7      Best:        	White=1     	Black=1} (43. Qc2+ {mates} Ka5 44. Kb3 Qxd3+ 45. Qxd3 Bb4 46. Qc2 (46. Qe2 Bf8 47. Qe1+ Bb4 48. Qxb4#) 46... h5 47. Qa2+ Ba3 48. Qxa3#) 1-0

[Event "50th La Roda Open 2024"]
[Site "La Roda"]
[Date "2024.03.29"]
[Round "4.4"]
[White "Liu, Zexu"]
[Black "Iturrizaga Bonelli, Eduardo"]
[Result "0-1"]
[ECO "A20"]
[WhiteElo "2325"]
[BlackElo "2588"]
[Annotator "TA"]
[PlyCount "70"]
[EventDate "2024.03.27"]
[EventType "swiss"]
[EventCountry "ESP"]
[SourceTitle "playchess.com"]
[Source "ChessBase"]
[SourceQuality "1"]
[TimeControl "5400+30"]

{[%evp 14,70,0,-16,0,-10,-9,-9,-6,-14,-15,-14,0,-22,0,0,0,-5,-24,-54,0,-41,-8,-7,0,-13,8,-25,-7,-74,-45,-54,-54,-58,-59,-82,-67,-105,-97,-356,-357,-338,-335,-359,-309,-837,-816,-996,-870,-2260,-494,-506,-502,-497,-484,-464,-421,-29985,-29986]} 1. Nf3 {[%emt 0:00:03]} d5 {[%emt 0:07:56]} 2. g3 {[%emt 0:00:04]} g6 {[%emt 0:00:10]} 3. Bg2 {[%emt 0:00:09]} Bg7 {[%emt 0:00:09]} 4. c4 {[%emt 0:02:26]} dxc4 {[%emt 0:00:44]} 5. Na3 {[%emt 0:00:11]} e5 {[%emt 0:03:04]} 6. O-O {[%emt 0:02:02]} Nc6 {[%emt 0:03:29]} 7. Nxc4 {[%emt 0:01:20]} Nge7 {[%emt 0:00:30]} 8. d3 {[%emt 0:00:10]} O-O {[%emt 0:00:07]} 9. Bd2 {[%emt 0:00:27]} a5 {[%emt 0:04:47]} 10. Bc3 {[%emt 0:05:10]} f6 {[%emt 0:01:58] The position is equal.} 11. b3 {[%emt 0:00:58]} Be6 {[%emt 0:04:35]} 12. Rc1 {[%emt 0:01:55]} Qd7 {[%emt 0:02:22]} 13. Re1 {[%emt 0:08:26]} b6 {[%emt 0:03:20]} 14. Qc2 {[%emt 0:01:46]} Rad8 {[%emt 0:03:34]} 15. a3 {[%emt 0:04:04]} g5 {[%emt 0:13:24]} 16. Nfd2 {[%emt 0:15:25]} h6 {[%emt 0:10:06]} (16... g4 $15) 17. Qb1 {[%emt 0:03:37]} Nd4 {[%emt 0:07:55]} 18. Nf3 {[%emt 0:06:35]} Nef5 {[%emt 0:10:09]} 19. a4 {[%emt 0:08:20]} Rfe8 {[%emt 0:04:29]} 20. Qb2 {[%emt 0:02:44]} Bf7 {[%emt 0:01:33]} 21. Nfd2 {[%emt 0:06:13]} (21. Nxd4 $11 {keeps the balance.} Nxd4 (21... exd4 22. Bd2 $11) 22. Nd2) 21... Bh5 {[%emt 0:01:43] Black is much more active.} 22. Bf1 {[%emt 0:03:24]} Ne7 {[%emt 0:02:11]} 23. e3 {[%emt 0:04:45]} Ne6 {[%emt 0:04:15]} 24. f4 {[%emt 0:03:40]} gxf4 {[%emt 0:09:05]} 25. gxf4 {[%emt 0:01:20]} exf4 {[%emt 0:00:28] [#] Threatens to win with ...Nd5.} 26. Ne4 $2 {[%emt 0:00:30][%mdl 8192] White does not recover from this.} (26. Bxf6 $17 Nd5 27. Bxg7 Nxg7 (27... Qxg7+ 28. Qxg7+ Kxg7 29. exf4 $17) 28. exf4) 26... Nd5 $19 {[%emt 0:00:26] ...Nxc3 would now be deadly.} 27. Nxf6+ {[%emt 0:05:51]} Nxf6 {[%emt 0:00:14]} 28. Bxf6 {[%emt 0:00:05]} Ng5 {[%emt 0:00:02]} 29. Bg2 {[%emt 0:05:07]} (29. Bxg7 Nf3+ 30. Kh1 Nxe1 (30... Qxg7 $2 31. Qxg7+ Kxg7 32. Re2 $19) 31. Rxe1 Qxg7 32. Qxg7+ Kxg7 33. e4) 29... f3 {[%emt 0:01:22]} 30. Bxg7 {[%emt 0:03:01]} fxg2 {[%emt 0:00:18]} ({Less strong is} 30... Qxg7 31. Qxg7+ Kxg7 32. Bf1 $17) 31. Bf6 {[%emt 0:00:34]} Nf3+ {[%emt 0:00:49]} (31... Nh3+ $142 32. Kxg2 Qc6+ 33. e4 Rxd3) 32. Kxg2 {[%emt 0:00:48]} Nxe1+ {[%emt 0:00:13]} 33. Rxe1 {[%emt 0:00:03]} Qg4+ {[%emt 0:00:06]} 34. Kh1 {[%emt 0:00:31] Hoping for Rg1.} Qf3+ {[%emt 0:00:03]} 35. Kg1 {[%emt 0:00:16] [#]} (35. Qg2+ $19 Qxg2+ 36. Kxg2 Rxd3 37. Rb1) 35... Kh7 $1 {[%emt 0:00:11] Weighted Error Value: White=0.97/Black=0.37.  Loses game:     	White=1     	---        Mistake:       	White=3     	Black=1      Inaccurate:     	White=4     	Black=2      OK:         	White=4     	Black=9      Best:        	White=1     	Black=1} 0-1

[Event "50th La Roda Open 2024"]
[Site "La Roda"]
[Date "2024.03.29"]
[Round "4.5"]
[White "Peralta, Fernando"]
[Black "Blom, Vincent"]
[Result "1-0"]
[ECO "E26"]
[WhiteElo "2580"]
[BlackElo "2307"]
[Annotator "TA"]
[PlyCount "67"]
[EventDate "2024.03.27"]
[EventType "swiss"]
[EventCountry "ESP"]
[SourceTitle "playchess.com"]
[Source "ChessBase"]
[SourceQuality "1"]
[TimeControl "5400+30"]

{[%evp 16,67,6,0,0,0,9,-7,0,0,0,-4,24,0,0,-10,10,8,5,-18,13,10,33,16,30,19,193,181,218,214,266,266,283,286,275,296,285,209,205,178,149,89,109,31,140,132,439,414,585,583,29983,29984,29984,29985]} 1. d4 {[%emt 0:00:03]} Nf6 {[%emt 0:00:26]} 2. c4 {[%emt 0:00:07]} e6 {[%emt 0:00:05]} 3. Nc3 {[%emt 0:00:10]} Bb4 {[%emt 0:00:21]} 4. e3 {[%emt 0:00:14]} c5 {[%emt 0:01:22]} 5. Bd3 {[%emt 0:00:55][%cal Bf1d3,Bd3b1,Bb1f5][%mdl 32]} Nc6 {[%emt 0:11:19]} 6. a3 {[%emt 0:02:38]} Bxc3+ {[%emt 0:01:38]} 7. bxc3 {[%emt 0:00:04]} d6 {[%emt 0:07:52]} 8. Ne2 {[%emt 0:00:51]} e5 {[%emt 0:05:33]} 9. O-O {[%emt 0:00:51]} e4 {[%emt 0:09:13]} 10. Bb1 {[%emt 0:02:16]} Bf5 {[%emt 0:17:44]} 11. Ng3 {[%emt 0:14:53]} Bg6 {[%emt 0:04:51] The position is equal.} 12. f4 {[%emt 0:01:06] [#] Black must now prevent f5.} exf3 {[%emt 0:06:39]} 13. Qxf3 {[%emt 0:19:12]} Qa5 {[%emt 0:02:48]} 14. Bf5 {[%emt 0:18:14]} O-O {[%emt 0:08:48]} 15. Rb1 {[%emt 0:02:55]} Qxc3 {[%emt 0:00:14]} 16. Bb2 {[%emt 0:00:58]} (16. Rxb7 Na5 17. Rb5 Nb3) 16... Qxc4 {[%emt 0:01:52][%cal Rc5d4]} 17. Rfc1 {[%emt 0:00:40]} Qa4 {[%emt 0:07:18]} 18. dxc5 {[%emt 0:02:10][%cal Bd4c5,Bc5c6,Bc6c7][%mdl 32]} Ne5 {[%emt 0:02:25]} 19. Bxe5 {[%emt 0:13:28]} ({Much worse is} 19. Qxb7 Rab8 20. Qc7 Rxb2 21. Rxb2 Qxa3 $11) 19... dxe5 {[%emt 0:00:05]} 20. Qxb7 {[%emt 0:00:10] aiming for c6.} Qh4 $2 {[%emt 0:04:52] [#]} (20... Qxa3 $11 {and Black has nothing to worry.} 21. Qb3 Qxb3 22. Rxb3 h5) 21. Qf3 $1 $18 {[%emt 0:01:56]} h5 {[%emt 0:00:17]} 22. c6 {[%emt 0:02:25]} Ng4 {[%emt 0:00:47]} 23. h3 {[%emt 0:01:04] Active counter play!} Nh6 {[%emt 0:03:15]} 24. c7 {[%emt 0:01:03]} Nxf5 {[%emt 0:01:40]} 25. Nxf5 {[%emt 0:01:04]} Qg5 {[%emt 0:00:33]} 26. e4 {[%emt 0:03:36]} Bxf5 {[%emt 0:00:20]} 27. exf5 {[%emt 0:00:40][%cal Of3a8] Qxa8! would now be deadly.} Rac8 {[%emt 0:00:12] Black is weak on the light squares} 28. Rc4 {[%emt 0:02:08]} (28. Rc6 $142) 28... Rfe8 $16 {[%emt 0:00:21][%cal Oe5e4]} 29. Re1 {[%emt 0:04:33]} (29. Qe4 $16) 29... Kf8 {[%emt 0:01:11]} (29... Re7 $14) 30. Kh2 $36 {[%emt 0:01:09][%mdl 2048] White is in control.} Qd2 $2 {[%emt 0:00:41][%mdl 8192]} (30... h4 $16) 31. Rd1 $18 {[%emt 0:00:54][%cal Be1d1,Bd1d7,Bd7d8,Bd8c8][%mdl 32]} Qh6 {[%emt 0:00:32]} (31... Qg5 {was called for.} 32. Rd7 Kg8) 32. Rd7 {[%emt 0:00:38]} Re7 {[%emt 0:00:41]} 33. Rd8+ {[%emt 0:00:37]} Re8 {[%emt 0:00:04]} 34. Rxc8 {[%emt 0:00:15] Weighted Error Value: White=0.15 (very precise) /Black=0.63.  Loses game:     	---       	Black=2      Mistake:       	White=2     	Black=2      Inaccurate:     	White=1     	Black=3      OK:         	White=8     	Black=8      Best:        	White=3     	Black=3} 1-0

[Event "50th La Roda Open 2024"]
[Site "La Roda"]
[Date "2024.03.29"]
[Round "4.6"]
[White "Bustos Bernardo, Samuel"]
[Black "Sonis, Francesco"]
[Result "0-1"]
[ECO "A32"]
[WhiteElo "2188"]
[BlackElo "2562"]
[Annotator "TA"]
[PlyCount "76"]
[EventDate "2024.03.27"]
[EventType "swiss"]
[EventCountry "ESP"]
[SourceTitle "playchess.com"]
[Source "ChessBase"]
[SourceQuality "1"]
[TimeControl "5400+30"]

{[%evp 12,75,28,-15,50,47,29,21,19,21,37,35,42,52,49,45,41,39,34,15,8,4,12,12,12,15,21,0,23,0,-19,-18,0,0,0,0,0,-21,-16,-33,-37,-39,0,-37,29,-42,-44,-33,-33,-36,-6,-11,0,0,-14,-74,-74,-272,-246,-29978,-29970,-29995,-29996,-29998,-29999,-29999]} 1. Nf3 {[%emt 0:02:59]} c5 {[%emt 0:00:54]} 2. c4 {[%emt 0:00:21]} Nc6 {[%emt 0:00:14]} 3. d4 {[%emt 0:00:32]} cxd4 {[%emt 0:00:11]} 4. Nxd4 {[%emt 0:00:06]} Nf6 {[%emt 0:07:14]} 5. g3 {[%emt 0:01:33]} e6 {[%emt 0:05:13]} 6. Bg2 {[%emt 0:02:17]} Qb6 {[%emt 0:00:32]} 7. Nb3 {[%emt 0:02:27] [#]} d5 {[%emt 0:00:46]} 8. cxd5 $14 {[%emt 0:01:42]} Bb4+ {[%emt 0:00:42]} 9. Bd2 {[%emt 0:02:42]} exd5 {[%emt 0:00:05] The position is equal.} 10. O-O {[%emt 0:00:42]} O-O {[%emt 0:00:30]} 11. Be3 {[%emt 0:02:43]} Qd8 {[%emt 0:01:04]} 12. a3 {[%emt 0:02:13]} Be7 {[%emt 0:00:04]} 13. Nc3 {[%emt 0:00:35]} Be6 {[%emt 0:00:47]} 14. Nd4 {[%emt 0:02:55]} Qd7 {[%emt 0:03:40]} 15. Nxc6 {[%emt 0:03:09]} bxc6 {[%emt 0:00:04]} 16. Na4 {[%emt 0:00:12]} Bh3 {[%emt 0:00:46]} 17. Rc1 {[%emt 0:03:55]} Bxg2 {[%emt 0:01:17]} 18. Kxg2 {[%emt 0:00:07]} Rfe8 {[%emt 0:01:47]} 19. Bc5 {[%emt 0:01:47]} Rac8 {[%emt 0:01:46]} 20. Qd4 {[%emt 0:08:48]} Bd8 {[%emt 0:02:35]} 21. Nc3 {[%emt 0:01:08]} Bc7 {[%emt 0:00:16]} 22. Rfd1 {[%emt 0:02:46]} Be5 {[%emt 0:01:33]} 23. Qd3 {[%emt 0:00:18]} h5 {[%emt 0:06:31]} 24. b4 {[%emt 0:04:59] [#]} h4 $1 {[%emt 0:04:12]} 25. Bd4 {[%emt 0:00:40]} (25. Kg1 Qe6) 25... h3+ {[%emt 0:04:26]} 26. Kg1 {[%emt 0:00:09]} Ng4 {[%emt 0:05:29][%cal Oa7a5]} (26... Bxd4 {simplifies} 27. Qxd4 a5 28. e3 axb4 29. axb4 Ng4) 27. Rd2 {[%emt 0:06:20]} Bd6 {[%emt 0:04:59]} (27... Bxd4 $15 28. Qxd4 Ne5) 28. Nd1 {[%emt 0:03:43] [#]} ({White should play} 28. Na4 $11) 28... a5 $1 $15 {[%emt 0:03:46]} 29. f3 {[%emt 0:01:51]} Ne5 {[%emt 0:01:43]} 30. Bxe5 {[%emt 0:00:12]} Rxe5 {[%emt 0:01:09]} 31. bxa5 {[%emt 0:01:07]} Qa7+ {[%emt 0:00:29]} 32. Kf1 $1 {[%emt 0:02:05]} Qxa5 {[%emt 0:00:11][%cal Oa5a8]} 33. Rdc2 {[%emt 0:10:06]} (33. Nf2 $11) 33... Rce8 $36 {[%emt 0:07:39][%mdl 2048] Black is really pushing. Black has more active pieces.} (33... Qxa3 34. Qxa3 Bxa3 35. Rxc6) (33... Bxa3 $2 34. Ra1 $18) 34. Rxc6 $2 {[%emt 0:05:59] This costs White the game.} (34. f4 $17 R5e6 35. Nf2) 34... Rxe2 $1 $19 {[%emt 0:00:15]} ({Inferior is} 34... Bxa3 35. Ra6 $11) (34... Qxa3 35. Qxa3 Bxa3 36. R1c2 $15) 35. Nc3 $2 {[%emt 0:00:06] White is weak on the dark squares} (35. Qxe2 $19 Rxe2 36. Kxe2 Qb5+ (36... Bxa3 $2 37. R1c2 $19) (36... Qxa3 $2 37. R6c3 $19) 37. Ke3 Bxa3 38. R1c2) 35... Rxh2 {[%emt 0:00:26] Black mates.} 36. Kg1 {[%emt 0:06:08]} Qa7+ {[%emt 0:00:07]} ({Worse is} 36... Bxa3 37. Kxh2 Bxc1 38. Qxd5 $11) 37. Kxh2 {[%emt 0:00:29]} Qf2+ {[%emt 0:00:02]} 38. Kxh3 {[%emt 0:00:13]} Qxg3# {[%emt 0:00:03] Weighted Error Value: White=0.32/Black=0.09 (flawless) .  Loses game:     	White=1     	---        Mistake:       	White=3     	Black=1      Inaccurate:     	White=2     	Black=2      OK:         	White=12    	Black=11     Best:        	---       	Black=1      Strong:       	White=1     	Black=1      Brilliant:      	---       	Black=1} 0-1